[Event "Late-Titled-Tuesday-Blitz-February-13-2024"]
[Site "Chess.com"]
[Date "2024.02.13"]
[Round "8"]
[White "Polish_fighter3000"]
[Black "Sokoloco"]
[Result "1/2-1/2"]
[WhiteElo "3056"]
[BlackElo "2808"]
[TimeControl "180+1"]
[EndTime "15:29:17 PST"]
[Termination "Game drawn - timeout vs insufficient material"]

1. e4 {[%clk 0:03:00.9]} 1... d6 {[%clk 0:03:00.2]} 2. d4 {[%clk 0:02:59.7]}
2... g6 {[%clk 0:03:00.9]} 3. Nc3 {[%clk 0:02:59.2]} 3... Bg7 {[%clk 0:03:01.6]}
4. Be3 {[%clk 0:02:51.9]} 4... a6 {[%clk 0:03:01.8]} 5. Qd2 {[%clk 0:02:46.6]}
5... b5 {[%clk 0:03:01.8]} 6. O-O-O {[%clk 0:02:46]} 6... Bb7 {[%clk 0:03:01.3]}
7. f3 {[%clk 0:02:43.1]} 7... Nd7 {[%clk 0:03:01.2]} 8. h4 {[%clk 0:02:41.4]}
8... h6 {[%clk 0:03:01.5]} 9. Nh3 {[%clk 0:02:28.4]} 9... e6 {[%clk 0:03:01.3]}
10. Kb1 {[%clk 0:02:26.5]} 10... Qxh4 {[%clk 0:02:56.4]} 11. Bxb5 {[%clk
0:02:06.4]} 11... axb5 {[%clk 0:02:56.3]} 12. Ng5 {[%clk 0:02:06.3]} 12... hxg5
{[%clk 0:02:29.7]} 13. Rxh4 {[%clk 0:02:04.6]} 13... gxh4 {[%clk 0:02:30.6]} 14.
Nxb5 {[%clk 0:02:04.9]} 14... Kd8 {[%clk 0:02:23.9]} 15. Qc3 {[%clk 0:02:02.3]}
15... Rc8 {[%clk 0:02:24.1]} 16. Qa5 {[%clk 0:02:02.4]} 16... Rh5 {[%clk
0:01:24.2]} 17. d5 {[%clk 0:01:49.1]} 17... Ke7 {[%clk 0:01:24.4]} 18. Qa7
{[%clk 0:01:35]} 18... Rb8 {[%clk 0:01:02.6]} 19. Nxc7 {[%clk 0:01:35]} 19...
Bxd5 {[%clk 0:00:42.6]} 20. exd5 {[%clk 0:01:29.7]} 20... Bxb2 {[%clk
0:00:43.2]} 21. Na6 {[%clk 0:00:37.7]} 21... Bd4+ {[%clk 0:00:29.5]} 22. Nxb8
{[%clk 0:00:37.7]} 22... Bxa7 {[%clk 0:00:29.9]} 23. Nc6+ {[%clk 0:00:37.9]}
23... Ke8 {[%clk 0:00:28.1]} 24. Nxa7 {[%clk 0:00:25.6]} 24... Rxd5 {[%clk
0:00:25.1]} 25. Rxd5 {[%clk 0:00:25.5]} 25... exd5 {[%clk 0:00:26]} 26. Nc8
{[%clk 0:00:22.8]} 26... Ne5 {[%clk 0:00:23.8]} 27. Nxd6+ {[%clk 0:00:22.2]}
27... Ke7 {[%clk 0:00:24.2]} 28. Bc5 {[%clk 0:00:21.6]} 28... Ke6 {[%clk
0:00:24.4]} 29. a4 {[%clk 0:00:20.6]} 29... Nf6 {[%clk 0:00:23.3]} 30. Nb5
{[%clk 0:00:14.6]} 30... Nc4 {[%clk 0:00:20.7]} 31. Ka2 {[%clk 0:00:11.2]} 31...
Nh5 {[%clk 0:00:16.3]} 32. Nd4+ {[%clk 0:00:07.8]} 32... Kd7 {[%clk 0:00:14.6]}
33. Ne2 {[%clk 0:00:06.3]} 33... g5 {[%clk 0:00:13.6]} 34. Kb3 {[%clk
0:00:05.6]} 34... f5 {[%clk 0:00:14.1]} 35. Bf2 {[%clk 0:00:04.4]} 35... h3
{[%clk 0:00:09.8]} 36. gxh3 {[%clk 0:00:04.3]} 36... Nd2+ {[%clk 0:00:10.5]} 37.
Kb4 {[%clk 0:00:04.5]} 37... Nxf3 {[%clk 0:00:11.4]} 38. a5 {[%clk 0:00:05]}
38... Kc6 {[%clk 0:00:08.8]} 39. a6 {[%clk 0:00:05.3]} 39... Nf6 {[%clk
0:00:08.9]} 40. Nc1 {[%clk 0:00:04.4]} 40... Ne4 {[%clk 0:00:08.8]} 41. Ba7
{[%clk 0:00:03.7]} 41... g4 {[%clk 0:00:07.4]} 42. hxg4 {[%clk 0:00:03.5]} 42...
fxg4 {[%clk 0:00:08.3]} 43. Nb3 {[%clk 0:00:03.9]} 43... g3 {[%clk 0:00:08]} 44.
Na5+ {[%clk 0:00:04.3]} 44... Kc7 {[%clk 0:00:08.7]} 45. Be3 {[%clk 0:00:04.7]}
45... Kb8 {[%clk 0:00:03.1]} 46. Kb5 {[%clk 0:00:04.1]} 46... Ne5 {[%clk
0:00:02.3]} 47. Nc6+ {[%clk 0:00:03.4]} 47... Nxc6 {[%clk 0:00:02.5]} 48. Kxc6
{[%clk 0:00:04.3]} 48... g2 {[%clk 0:00:02.3]} 49. Kxd5 {[%clk 0:00:04]} 49...
Nc3+ {[%clk 0:00:02.8]} 50. Kc6 {[%clk 0:00:01.5]} 50... Ne2 {[%clk 0:00:02.5]}
51. c4 {[%clk 0:00:01.5]} 51... g1=Q {[%clk 0:00:02.5]} 52. Bxg1 {[%clk
0:00:02]} 52... Nxg1 {[%clk 0:00:03.4]} 53. c5 {[%clk 0:00:02.6]} 53... Ne2
{[%clk 0:00:03.2]} 54. Kd5 {[%clk 0:00:02.2]} 54... Nc3+ {[%clk 0:00:03.2]} 55.
Kc4 {[%clk 0:00:01.3]} 55... Ne4 {[%clk 0:00:03.6]} 56. c6 {[%clk 0:00:01.4]}
56... Nd6+ {[%clk 0:00:03.2]} 57. Kc5 {[%clk 0:00:01.2]} 57... Nc8 {[%clk
0:00:03.6]} 1/2-1/2

[Event "Late-Titled-Tuesday-Blitz-February-13-2024"]
[Site "Chess.com"]
[Date "2024.02.13"]
[Round "8"]
[White "protectiago"]
[Black "FMOlexandrProhorov"]
[Result "0-1"]
[WhiteElo "2085"]
[BlackElo "2320"]
[TimeControl "180+1"]
[EndTime "15:29:24 PST"]
[Termination "FMOlexandrProhorov won on time"]

1. d4 {[%clk 0:02:59.4]} 1... Nf6 {[%clk 0:02:55.1]} 2. c4 {[%clk 0:02:58.9]}
2... e5 {[%clk 0:02:55.3]} 3. dxe5 {[%clk 0:02:57.6]} 3... Ng4 {[%clk
0:02:55.5]} 4. e6 {[%clk 0:02:56]} 4... fxe6 {[%clk 0:02:53.9]} 5. e4 {[%clk
0:02:55.1]} 5... Bb4+ {[%clk 0:02:40.8]} 6. Bd2 {[%clk 0:02:42.9]} 6... Bxd2+
{[%clk 0:02:40.5]} 7. Nxd2 {[%clk 0:02:42.7]} 7... Ne5 {[%clk 0:02:23.8]} 8.
Qh5+ {[%clk 0:02:40.5]} 8... Ng6 {[%clk 0:02:23]} 9. e5 {[%clk 0:02:34.8]} 9...
Nc6 {[%clk 0:02:14.8]} 10. Ngf3 {[%clk 0:02:25.7]} 10... Qe7 {[%clk 0:02:00.3]}
11. Bd3 {[%clk 0:02:22.7]} 11... Qf7 {[%clk 0:01:54.6]} 12. Ne4 {[%clk
0:02:05.5]} 12... Nf4 {[%clk 0:01:49.2]} 13. Qxf7+ {[%clk 0:02:03.2]} 13... Kxf7
{[%clk 0:01:50.1]} 14. Neg5+ {[%clk 0:01:56.4]} 14... Kg8 {[%clk 0:01:45.3]} 15.
Bf1 {[%clk 0:01:51.2]} 15... Nb4 {[%clk 0:01:40.4]} 16. O-O-O {[%clk 0:01:49.3]}
16... Nxa2+ {[%clk 0:01:40.2]} 17. Kb1 {[%clk 0:01:47.9]} 17... Nb4 {[%clk
0:01:40.4]} 18. g3 {[%clk 0:01:34.6]} 18... Ng6 {[%clk 0:01:40.3]} 19. Bh3
{[%clk 0:01:21.3]} 19... Nf8 {[%clk 0:01:22.7]} 20. Nd4 {[%clk 0:00:46.3]} 20...
h6 {[%clk 0:01:05.2]} 21. Ne4 {[%clk 0:00:46.1]} 21... a6 {[%clk 0:00:55]} 22.
f4 {[%clk 0:00:45.7]} 22... b6 {[%clk 0:00:51.5]} 23. Rhe1 {[%clk 0:00:32.8]}
23... Bb7 {[%clk 0:00:51.7]} 24. Nc3 {[%clk 0:00:25]} 24... Kh7 {[%clk
0:00:40.2]} 25. f5 {[%clk 0:00:24.2]} 25... exf5 {[%clk 0:00:37.2]} 26. Nxf5
{[%clk 0:00:22.1]} 26... g6 {[%clk 0:00:32.5]} 27. Ne7 {[%clk 0:00:17]} 27...
Re8 {[%clk 0:00:31.1]} 28. Ned5 {[%clk 0:00:15.6]} 28... Nxd5 {[%clk 0:00:30]}
29. cxd5 {[%clk 0:00:15.8]} 29... Kg7 {[%clk 0:00:29.9]} 30. e6 {[%clk
0:00:12.7]} 30... dxe6 {[%clk 0:00:29.1]} 31. dxe6 {[%clk 0:00:12.9]} 31... Re7
{[%clk 0:00:29.1]} 32. Rd8 {[%clk 0:00:10.6]} 32... g5 {[%clk 0:00:28.7]} 33.
Bf5 {[%clk 0:00:09.9]} 33... Ng6 {[%clk 0:00:26.5]} 34. Rxh8 {[%clk 0:00:09.9]}
34... Nxh8 {[%clk 0:00:27.4]} 35. g4 {[%clk 0:00:09.7]} 35... Ng6 {[%clk
0:00:27.2]} 36. Rd1 {[%clk 0:00:09.6]} 36... Nf4 {[%clk 0:00:26.6]} 37. Rd7
{[%clk 0:00:09.3]} 37... Kf6 {[%clk 0:00:26.3]} 38. Kc2 {[%clk 0:00:06.2]} 38...
Bc6 {[%clk 0:00:26.7]} 39. Rd4 {[%clk 0:00:05.3]} 39... h5 {[%clk 0:00:24.7]}
40. Ne4+ {[%clk 0:00:04.5]} 40... Bxe4+ {[%clk 0:00:23.8]} 41. Rxe4 {[%clk
0:00:05.1]} 41... hxg4 {[%clk 0:00:23.1]} 42. Bxg4 {[%clk 0:00:05.4]} 42... Nxe6
{[%clk 0:00:23.7]} 43. h4 {[%clk 0:00:03.2]} 43... gxh4 {[%clk 0:00:23.2]} 44.
Bxe6 {[%clk 0:00:03.5]} 44... Rxe6 {[%clk 0:00:23.1]} 45. Rxh4 {[%clk
0:00:03.8]} 45... Rd6 {[%clk 0:00:23]} 46. Kc3 {[%clk 0:00:03.7]} 46... Ke6
{[%clk 0:00:22.7]} 47. b4 {[%clk 0:00:03.1]} 47... Kd7 {[%clk 0:00:23]} 48. Rh7+
{[%clk 0:00:03.2]} 48... Kc6 {[%clk 0:00:23.1]} 49. Rh8 {[%clk 0:00:03.6]} 49...
Rg6 {[%clk 0:00:23.5]} 50. Ra8 {[%clk 0:00:03]} 50... Kb7 {[%clk 0:00:22.1]} 51.
Re8 {[%clk 0:00:03.5]} 51... b5 {[%clk 0:00:20.3]} 52. Re5 {[%clk 0:00:02.7]}
52... Kb6 {[%clk 0:00:20.4]} 53. Re4 {[%clk 0:00:02.7]} 53... a5 {[%clk
0:00:20.1]} 54. bxa5+ {[%clk 0:00:02.7]} 54... Kxa5 {[%clk 0:00:21]} 55. Kb3
{[%clk 0:00:02.7]} 55... Rg3+ {[%clk 0:00:20.1]} 56. Kb2 {[%clk 0:00:02.7]}
56... c5 {[%clk 0:00:20.1]} 57. Re8 {[%clk 0:00:03]} 57... Kb4 {[%clk
0:00:20.3]} 58. Re4+ {[%clk 0:00:03.1]} 58... c4 {[%clk 0:00:20.9]} 59. Kc2
{[%clk 0:00:03.2]} 59... Rg2+ {[%clk 0:00:20.6]} 60. Kd1 {[%clk 0:00:03.7]}
60... Kb3 {[%clk 0:00:21.1]} 61. Re3+ {[%clk 0:00:04.2]} 61... c3 {[%clk
0:00:21.3]} 62. Re8 {[%clk 0:00:03.5]} 62... b4 {[%clk 0:00:21.5]} 63. Rc8
{[%clk 0:00:02.2]} 63... Rg1+ {[%clk 0:00:21.8]} 64. Ke2 {[%clk 0:00:02]} 64...
c2 {[%clk 0:00:22.2]} 65. Kf2 {[%clk 0:00:01.9]} 65... Rh1 {[%clk 0:00:21.2]}
0-1

[Event "Late-Titled-Tuesday-Blitz-February-13-2024"]
[Site "Chess.com"]
[Date "2024.02.13"]
[Round "8"]
[White "annasargsyan_m"]
[Black "viniciusrego"]
[Result "1-0"]
[WhiteElo "2587"]
[BlackElo "2386"]
[TimeControl "180+1"]
[EndTime "15:29:29 PST"]
[Termination "annasargsyan_m won by resignation"]

1. d4 {[%clk 0:03:00.9]} 1... g6 {[%clk 0:02:59.5]} 2. g3 {[%clk 0:03:00.2]}
2... Bg7 {[%clk 0:02:59.5]} 3. Bg2 {[%clk 0:03:01]} 3... c5 {[%clk 0:02:58.6]}
4. Nf3 {[%clk 0:03:00]} 4... cxd4 {[%clk 0:02:56.2]} 5. Nxd4 {[%clk 0:03:00.9]}
5... Qb6 {[%clk 0:02:53.9]} 6. Nb3 {[%clk 0:03:00.3]} 6... Nf6 {[%clk
0:02:53.6]} 7. O-O {[%clk 0:03:00.7]} 7... O-O {[%clk 0:02:53.6]} 8. c4 {[%clk
0:02:58.2]} 8... d6 {[%clk 0:02:48.7]} 9. Nc3 {[%clk 0:02:57.5]} 9... Be6 {[%clk
0:02:45.7]} 10. Be3 {[%clk 0:02:54.9]} 10... Qc7 {[%clk 0:02:45.2]} 11. Rc1
{[%clk 0:02:45.8]} 11... a6 {[%clk 0:02:44.5]} 12. c5 {[%clk 0:02:37.8]} 12...
d5 {[%clk 0:02:36.5]} 13. Nd4 {[%clk 0:02:28.9]} 13... Nc6 {[%clk 0:02:30.8]}
14. Bf4 {[%clk 0:02:17.1]} 14... Qc8 {[%clk 0:02:29.4]} 15. Nxe6 {[%clk
0:02:15.2]} 15... fxe6 {[%clk 0:02:30.3]} 16. Na4 {[%clk 0:02:12.7]} 16... e5
{[%clk 0:02:16.7]} 17. Nb6 {[%clk 0:02:06]} 17... Qg4 {[%clk 0:02:12.4]} 18.
Bxd5+ {[%clk 0:00:38.4]} 18... Nxd5 {[%clk 0:02:11.5]} 19. Qxd5+ {[%clk
0:00:39.3]} 19... e6 {[%clk 0:02:11.4]} 20. Qe4 {[%clk 0:00:39.3]} 20... exf4
{[%clk 0:02:11.2]} 21. Nxa8 {[%clk 0:00:39.2]} 21... Rxa8 {[%clk 0:02:10.3]} 22.
Rfd1 {[%clk 0:00:39.8]} 22... Rf8 {[%clk 0:01:56.8]} 23. Rd7 {[%clk 0:00:38.7]}
23... Rf7 {[%clk 0:01:47.8]} 24. Rcd1 {[%clk 0:00:38.4]} 24... Qf5 {[%clk
0:01:24.8]} 25. Qxf5 {[%clk 0:00:36.8]} 25... Rxf5 {[%clk 0:01:24]} 26. Rxb7
{[%clk 0:00:33.3]} 26... Rxc5 {[%clk 0:01:24.5]} 27. Rc7 {[%clk 0:00:27]} 27...
Be5 {[%clk 0:01:16.5]} 28. Rc8+ {[%clk 0:00:25.5]} 28... Kg7 {[%clk 0:01:16.5]}
29. Rd7+ {[%clk 0:00:18.2]} 29... Kh6 {[%clk 0:01:14.2]} 30. gxf4 {[%clk
0:00:16.6]} 30... Bxf4 {[%clk 0:01:15.1]} 31. Rh8 {[%clk 0:00:15.8]} 31... Ne5
{[%clk 0:01:07.3]} 32. Rhxh7+ {[%clk 0:00:13.2]} 32... Kg5 {[%clk 0:01:07.9]}
33. Rde7 {[%clk 0:00:09.8]} 33... Ng4 {[%clk 0:01:03.5]} 34. e3 {[%clk
0:00:07.8]} 34... Rc1+ {[%clk 0:00:56.4]} 35. Kg2 {[%clk 0:00:08.1]} 35... Be5
{[%clk 0:00:56.7]} 36. h4+ {[%clk 0:00:07.6]} 36... Kf5 {[%clk 0:00:56]} 37. e4+
{[%clk 0:00:03]} 37... Kf4 {[%clk 0:00:51.5]} 38. Rhf7+ {[%clk 0:00:02.7]} 38...
Bf6 {[%clk 0:00:37.2]} 39. Rxe6 {[%clk 0:00:02.5]} 39... Rc2 {[%clk 0:00:29]}
40. Rfxf6+ {[%clk 0:00:03.1]} 40... Nxf6 {[%clk 0:00:29.8]} 41. Rxf6+ {[%clk
0:00:04]} 41... Kxe4 {[%clk 0:00:30.3]} 42. Rxa6 {[%clk 0:00:04.6]} 42... Rxb2
{[%clk 0:00:29.6]} 43. a4 {[%clk 0:00:04.7]} 43... Kf5 {[%clk 0:00:29.3]} 44. a5
{[%clk 0:00:04.8]} 44... Ra2 {[%clk 0:00:29.7]} 45. Ra8 {[%clk 0:00:04.3]} 45...
Kg4 {[%clk 0:00:29.4]} 46. a6 {[%clk 0:00:05.1]} 46... Kxh4 {[%clk 0:00:29.7]}
47. a7 {[%clk 0:00:05.9]} 47... Kg5 {[%clk 0:00:30.2]} 48. Kg3 {[%clk
0:00:06.4]} 48... Ra4 {[%clk 0:00:30.5]} 49. f3 {[%clk 0:00:06.7]} 49... Ra3
{[%clk 0:00:30.6]} 50. Kf2 {[%clk 0:00:07]} 50... Ra2+ {[%clk 0:00:30.8]} 51.
Ke3 {[%clk 0:00:07.7]} 51... Ra3+ {[%clk 0:00:31.4]} 52. Kd4 {[%clk 0:00:07.4]}
52... Ra5 {[%clk 0:00:25.3]} 53. Ke4 {[%clk 0:00:07]} 53... Ra4+ {[%clk
0:00:25.5]} 54. Ke5 {[%clk 0:00:06.9]} 54... Ra5+ {[%clk 0:00:25.8]} 55. Ke6
{[%clk 0:00:07.7]} 55... Ra6+ {[%clk 0:00:25.8]} 56. Kf7 {[%clk 0:00:08.4]}
56... Ra3 {[%clk 0:00:23.9]} 57. Kg7 {[%clk 0:00:08.3]} 57... Ra4 {[%clk
0:00:21.1]} 58. f4+ {[%clk 0:00:08.1]} 58... Kg4 {[%clk 0:00:21]} 59. Kxg6
{[%clk 0:00:07.3]} 59... Ra6+ {[%clk 0:00:20.5]} 60. Kg7 {[%clk 0:00:06.9]}
60... Ra1 {[%clk 0:00:17.5]} 61. f5 {[%clk 0:00:06.9]} 61... Kg5 {[%clk
0:00:17]} 62. f6 {[%clk 0:00:07]} 62... Ra6 {[%clk 0:00:16.9]} 63. f7 {[%clk
0:00:07.3]} 63... Rg6+ {[%clk 0:00:16.5]} 64. Kf8 {[%clk 0:00:07.7]} 64... Rh6
{[%clk 0:00:13.9]} 65. Re8 {[%clk 0:00:06.5]} 65... Kf6 {[%clk 0:00:13.1]} 66.
Kg8 {[%clk 0:00:06.2]} 66... Rg6+ {[%clk 0:00:12.9]} 67. Kh7 {[%clk 0:00:06.9]}
67... Rg7+ {[%clk 0:00:13.1]} 68. Kh6 {[%clk 0:00:07.6]} 68... Rg6+ {[%clk
0:00:13.3]} 69. Kh5 {[%clk 0:00:07.2]} 69... Kxf7 {[%clk 0:00:13.4]} 70. a8=Q
{[%clk 0:00:06.6]} 1-0

[Event "Late-Titled-Tuesday-Blitz-February-13-2024"]
[Site "Chess.com"]
[Date "2024.02.13"]
[Round "8"]
[White "gahryman"]
[Black "Genghis_K"]
[Result "0-1"]
[WhiteElo "2697"]
[BlackElo "2918"]
[TimeControl "180+1"]
[EndTime "15:29:31 PST"]
[Termination "Genghis_K won on time"]

1. e4 {[%clk 0:03:00.1]} 1... c5 {[%clk 0:03:00.2]} 2. Nf3 {[%clk 0:02:59.8]}
2... d6 {[%clk 0:03:01]} 3. d4 {[%clk 0:02:59.9]} 3... cxd4 {[%clk 0:03:01.9]}
4. Qxd4 {[%clk 0:03:00.5]} 4... Nc6 {[%clk 0:03:01.7]} 5. Bb5 {[%clk 0:03:00]}
5... a6 {[%clk 0:03:02.4]} 6. Bxc6+ {[%clk 0:02:59.7]} 6... bxc6 {[%clk
0:03:03.3]} 7. c4 {[%clk 0:03:00.3]} 7... e5 {[%clk 0:03:03.5]} 8. Qd3 {[%clk
0:03:00.4]} 8... Ne7 {[%clk 0:03:04.3]} 9. O-O {[%clk 0:02:37.7]} 9... Ng6
{[%clk 0:03:04.3]} 10. Be3 {[%clk 0:02:37.4]} 10... Be7 {[%clk 0:03:04.1]} 11.
Rd1 {[%clk 0:02:33.1]} 11... O-O {[%clk 0:03:04.5]} 12. c5 {[%clk 0:02:27.5]}
12... d5 {[%clk 0:02:36.8]} 13. exd5 {[%clk 0:02:27.1]} 13... cxd5 {[%clk
0:02:37.2]} 14. Qxd5 {[%clk 0:02:25.4]} 14... Qxd5 {[%clk 0:02:37.9]} 15. Rxd5
{[%clk 0:02:26]} 15... Be6 {[%clk 0:02:38.7]} 16. Rd1 {[%clk 0:02:23.4]} 16...
Rfc8 {[%clk 0:02:38.3]} 17. Rc1 {[%clk 0:02:21.4]} 17... a5 {[%clk 0:02:36.7]}
18. Nbd2 {[%clk 0:02:20.1]} 18... f5 {[%clk 0:02:35.9]} 19. c6 {[%clk
0:02:10.4]} 19... f4 {[%clk 0:02:25]} 20. Bc5 {[%clk 0:02:04]} 20... Bf6 {[%clk
0:02:25.2]} 21. Bd6 {[%clk 0:01:44]} 21... Bd5 {[%clk 0:02:23.6]} 22. Rc5 {[%clk
0:01:18]} 22... Bxc6 {[%clk 0:02:10.2]} 23. Rac1 {[%clk 0:01:13.5]} 23... Bd7
{[%clk 0:02:09]} 24. Ne4 {[%clk 0:01:10.3]} 24... Rxc5 {[%clk 0:02:04.7]} 25.
Rxc5 {[%clk 0:01:09.8]} 25... Bf5 {[%clk 0:02:05.1]} 26. Nfd2 {[%clk 0:01:06.8]}
26... Rd8 {[%clk 0:02:04.6]} 27. Rxa5 {[%clk 0:00:52.8]} 27... Be7 {[%clk
0:02:01]} 28. Bxe7 {[%clk 0:00:35.1]} 28... Nxe7 {[%clk 0:02:01.9]} 29. f3
{[%clk 0:00:34.2]} 29... Nd5 {[%clk 0:01:58.4]} 30. Rc5 {[%clk 0:00:28.6]} 30...
Ne3 {[%clk 0:01:51.3]} 31. Rxe5 {[%clk 0:00:17.9]} 31... Bxe4 {[%clk 0:01:51.8]}
32. Nxe4 {[%clk 0:00:18.2]} 32... Rd1+ {[%clk 0:01:51.5]} 33. Kf2 {[%clk
0:00:18.5]} 33... Rf1+ {[%clk 0:01:45.5]} 34. Ke2 {[%clk 0:00:18.4]} 34... Rg1
{[%clk 0:01:46.3]} 35. g3 {[%clk 0:00:17.3]} 35... Rg2+ {[%clk 0:01:43.4]} 36.
Kd3 {[%clk 0:00:17.7]} 36... Rxb2 {[%clk 0:01:37.2]} 37. gxf4 {[%clk 0:00:16.6]}
37... Ng2 {[%clk 0:01:37.9]} 38. Ra5 {[%clk 0:00:13.6]} 38... Nxf4+ {[%clk
0:01:37.7]} 39. Ke3 {[%clk 0:00:14.1]} 39... Ng2+ {[%clk 0:01:38]} 40. Kd4
{[%clk 0:00:14.5]} 40... Ne1 {[%clk 0:01:36.7]} 41. Ng5 {[%clk 0:00:13.6]} 41...
g6 {[%clk 0:01:35.1]} 42. Ra7 {[%clk 0:00:12.3]} 42... Rxh2 {[%clk 0:01:32.9]}
43. f4 {[%clk 0:00:11.8]} 43... h6 {[%clk 0:01:27.9]} 44. Ne4 {[%clk 0:00:11.8]}
44... Re2 {[%clk 0:01:20.9]} 45. Nf6+ {[%clk 0:00:10]} 45... Kf8 {[%clk
0:01:20.2]} 46. Rd7 {[%clk 0:00:10.6]} 46... Nf3+ {[%clk 0:01:16.3]} 47. Kc5
{[%clk 0:00:10.2]} 47... Re6 {[%clk 0:01:12.6]} 48. Rd6 {[%clk 0:00:07.8]} 48...
Ke7 {[%clk 0:00:56.2]} 49. Rxe6+ {[%clk 0:00:07.1]} 49... Kxe6 {[%clk
0:00:57.1]} 50. Ne4 {[%clk 0:00:07.1]} 50... Kf5 {[%clk 0:00:56.1]} 51. Nf2
{[%clk 0:00:06.3]} 51... Kxf4 {[%clk 0:00:49.3]} 52. a4 {[%clk 0:00:06.4]} 52...
Nd2 {[%clk 0:00:50]} 53. Kb4 {[%clk 0:00:04.7]} 53... Ke5 {[%clk 0:00:41.8]} 54.
a5 {[%clk 0:00:03.5]} 54... Kd4 {[%clk 0:00:41.9]} 55. a6 {[%clk 0:00:03]} 55...
Nc4 {[%clk 0:00:42.7]} 56. a7 {[%clk 0:00:03]} 56... Nb6 {[%clk 0:00:43]} 57.
Kb5 {[%clk 0:00:03.5]} 57... Na8 {[%clk 0:00:29.3]} 58. Kc6 {[%clk 0:00:03.6]}
58... Ke5 {[%clk 0:00:26.3]} 59. Kb7 {[%clk 0:00:03.7]} 59... Kd6 {[%clk
0:00:26.9]} 60. Ne4+ {[%clk 0:00:03.9]} 60... Kd7 {[%clk 0:00:27.3]} 61. Nf6+
{[%clk 0:00:04.1]} 61... Kd8 {[%clk 0:00:26.9]} 62. Kxa8 {[%clk 0:00:04.1]}
62... Kc8 {[%clk 0:00:24.7]} 63. Nd5 {[%clk 0:00:04.4]} 63... g5 {[%clk
0:00:22.7]} 64. Nb6+ {[%clk 0:00:04.4]} 64... Kc7 {[%clk 0:00:22.8]} 65. Nd5+
{[%clk 0:00:04.8]} 65... Kc8 {[%clk 0:00:23.6]} 66. Nf6 {[%clk 0:00:05.4]} 66...
Kc7 {[%clk 0:00:23.3]} 67. Ne8+ {[%clk 0:00:05.3]} 67... Kc8 {[%clk 0:00:23.7]}
68. Nd6+ {[%clk 0:00:04.9]} 68... Kc7 {[%clk 0:00:24.4]} 69. Nf7 {[%clk
0:00:05.4]} 69... g4 {[%clk 0:00:24]} 70. Nxh6 {[%clk 0:00:04.1]} 70... g3
{[%clk 0:00:24.7]} 0-1

[Event "Late-Titled-Tuesday-Blitz-February-13-2024"]
[Site "Chess.com"]
[Date "2024.02.13"]
[Round "8"]
[White "platy3"]
[Black "BogdanDeac"]
[Result "0-1"]
[WhiteElo "2957"]
[BlackElo "3034"]
[TimeControl "180+1"]
[EndTime "15:29:32 PST"]
[Termination "BogdanDeac won on time"]

1. e4 {[%clk 0:03:00.9]} 1... e5 {[%clk 0:03:00.3]} 2. Nf3 {[%clk 0:03:01.3]}
2... Nc6 {[%clk 0:03:01]} 3. Bc4 {[%clk 0:03:01.8]} 3... Bc5 {[%clk 0:02:59.3]}
4. d3 {[%clk 0:03:02]} 4... Nf6 {[%clk 0:02:59.9]} 5. a4 {[%clk 0:03:02.1]} 5...
d6 {[%clk 0:02:56.9]} 6. O-O {[%clk 0:03:01.9]} 6... a6 {[%clk 0:02:56.9]} 7.
Be3 {[%clk 0:03:01.7]} 7... Bxe3 {[%clk 0:02:52.6]} 8. fxe3 {[%clk 0:03:02.6]}
8... O-O {[%clk 0:02:51.5]} 9. Nbd2 {[%clk 0:03:02.7]} 9... Ne7 {[%clk
0:02:46.8]} 10. Nh4 {[%clk 0:02:54.3]} 10... Ng6 {[%clk 0:02:46.1]} 11. Nxg6
{[%clk 0:02:49.9]} 11... hxg6 {[%clk 0:02:45.3]} 12. Qe1 {[%clk 0:02:50.8]}
12... Qe7 {[%clk 0:02:15]} 13. Qg3 {[%clk 0:02:49.6]} 13... Be6 {[%clk 0:02:15]}
14. Bxe6 {[%clk 0:02:43.4]} 14... Qxe6 {[%clk 0:02:14.7]} 15. Nf3 {[%clk
0:02:44.3]} 15... Qg4 {[%clk 0:02:10.1]} 16. Qe1 {[%clk 0:02:41.1]} 16... a5
{[%clk 0:02:06.8]} 17. h3 {[%clk 0:02:40.9]} 17... Qd7 {[%clk 0:01:59.2]} 18.
Qh4 {[%clk 0:02:38.5]} 18... Nh7 {[%clk 0:01:57.6]} 19. b3 {[%clk 0:02:36.1]}
19... f6 {[%clk 0:01:55]} 20. Rad1 {[%clk 0:02:27.6]} 20... Rfe8 {[%clk
0:01:32.3]} 21. g4 {[%clk 0:02:27.3]} 21... g5 {[%clk 0:01:04.1]} 22. Qg3 {[%clk
0:02:25.9]} 22... d5 {[%clk 0:01:04.5]} 23. Nd2 {[%clk 0:02:04.3]} 23... c6
{[%clk 0:00:36.8]} 24. Qf3 {[%clk 0:02:04.4]} 24... Nf8 {[%clk 0:00:29.9]} 25.
Qf5 {[%clk 0:02:01.9]} 25... Rad8 {[%clk 0:00:21.8]} 26. Kg2 {[%clk 0:01:54]}
26... Qf7 {[%clk 0:00:14.5]} 27. Qf2 {[%clk 0:01:45.6]} 27... Ng6 {[%clk
0:00:11.9]} 28. Nf3 {[%clk 0:01:34.5]} 28... Qe6 {[%clk 0:00:09.3]} 29. Qe1
{[%clk 0:01:31.5]} 29... dxe4 {[%clk 0:00:07.1]} 30. dxe4 {[%clk 0:01:32.4]}
30... b6 {[%clk 0:00:07.6]} 31. Qc3 {[%clk 0:01:30.3]} 31... Nf8 {[%clk
0:00:03.9]} 32. Rd3 {[%clk 0:01:27.1]} 32... Rc8 {[%clk 0:00:02.4]} 33. Rfd1
{[%clk 0:01:26.9]} 33... Qf7 {[%clk 0:00:03]} 34. Rd6 {[%clk 0:01:25.1]} 34...
Qc7 {[%clk 0:00:03.2]} 35. Qc4+ {[%clk 0:01:24.1]} 35... Qf7 {[%clk 0:00:03.4]}
36. Qxf7+ {[%clk 0:01:20.8]} 36... Kxf7 {[%clk 0:00:03.5]} 37. Nd2 {[%clk
0:01:21.7]} 37... Ke7 {[%clk 0:00:03]} 38. Nc4 {[%clk 0:01:21.8]} 38... Rb8
{[%clk 0:00:01.8]} 39. Rxc6 {[%clk 0:01:21.6]} 39... Rec8 {[%clk 0:00:02.5]} 40.
Rdd6 {[%clk 0:01:17.1]} 40... Rxc6 {[%clk 0:00:02.9]} 41. Rxc6 {[%clk 0:01:18]}
41... Nd7 {[%clk 0:00:03.6]} 42. Rc7 {[%clk 0:01:12.8]} 42... Kd8 {[%clk
0:00:03]} 43. Ra7 {[%clk 0:01:12.9]} 43... g6 {[%clk 0:00:02.3]} 44. Kf2 {[%clk
0:01:11.3]} 44... Ke7 {[%clk 0:00:02.6]} 45. Rc7 {[%clk 0:01:00.3]} 45... Kd8
{[%clk 0:00:02.6]} 46. Rc6 {[%clk 0:00:59]} 46... Ke7 {[%clk 0:00:02.2]} 47. c3
{[%clk 0:00:51.9]} 47... b5 {[%clk 0:00:02.3]} 48. Nxa5 {[%clk 0:00:45.3]} 48...
bxa4 {[%clk 0:00:02.7]} 49. bxa4 {[%clk 0:00:46.2]} 49... Ra8 {[%clk 0:00:03]}
50. Nb3 {[%clk 0:00:42.3]} 50... Rxa4 {[%clk 0:00:03]} 51. Rc7 {[%clk 0:00:43]}
51... Ra2+ {[%clk 0:00:03]} 52. Kf3 {[%clk 0:00:42.4]} 52... Kd6 {[%clk
0:00:03.7]} 53. Rb7 {[%clk 0:00:37.5]} 53... Rc2 {[%clk 0:00:02.7]} 54. Ra7
{[%clk 0:00:17.8]} 54... Rxc3 {[%clk 0:00:03.2]} 55. Ra6+ {[%clk 0:00:18.1]}
55... Rc6 {[%clk 0:00:03.3]} 56. Rxc6+ {[%clk 0:00:13.3]} 56... Kxc6 {[%clk
0:00:04.2]} 57. Nd2 {[%clk 0:00:12.8]} 57... Kb5 {[%clk 0:00:04.3]} 58. Ke2
{[%clk 0:00:10.2]} 58... Nc5 {[%clk 0:00:04.2]} 59. Kd1 {[%clk 0:00:04.4]} 59...
Ka4 {[%clk 0:00:04.1]} 60. Kc2 {[%clk 0:00:05.1]} 60... Kb4 {[%clk 0:00:04.6]}
61. Kb2 {[%clk 0:00:05.1]} 61... Nd3+ {[%clk 0:00:04.9]} 62. Kc2 {[%clk
0:00:05.6]} 62... Nf2 {[%clk 0:00:05.5]} 63. Nf3 {[%clk 0:00:01.6]} 63... Nxh3
{[%clk 0:00:05.6]} 64. Kd3 {[%clk 0:00:01.4]} 64... Nf2+ {[%clk 0:00:05.9]} 0-1